[Event "FINAL CAMPEONATO ABSOLUTO DE AJEDREZ CHILE 2018"]
[Site "CENTRO CULTURAL LO PRADO, Chile"]
[Date "2018.03.01"]
[Round "9.4"]
[White "FUENTES PARRA, Victor Ignacio"]
[Black "LOPEZ SILVA, Hugo Andres"]
[Result "0-1"]
[TimeControl "90 minutos mas 30 segundos de incremento por movida"]
[WhiteElo "2148"]
[BlackElo "2389"]

1. Nf3 {[%clk 01:30:58]} {[%emt 00:00:02]} Nf6 {[%clk 01:19:42]} {[%emt
00:11:18]} 2. b3 {[%clk 01:31:23]} {[%emt 00:00:05]} g6 {[%clk 01:19:49]}
{[%emt 00:00:23]} 3. Bb2 {[%clk 01:31:49]} {[%emt 00:00:04]} Bg7 {[%clk
01:20:17]} {[%emt 00:00:01]} 4. e3 {[%clk 01:32:01]} {[%emt 00:00:18]} c5
{[%clk 01:19:38]} {[%emt 00:01:09]} 5. d4 {[%clk 01:32:28]} {[%emt 00:00:04]}
cxd4 {[%clk 01:20:02]} {[%emt 00:00:06]} 6. exd4 {[%clk 01:32:53]} {[%emt
00:00:05]} O-O {[%clk 01:20:10]} {[%emt 00:00:22]} 7. Nbd2 {[%clk 01:31:26]}
{[%emt 00:01:57]} Nc6 {[%clk 01:18:14]} {[%emt 00:02:25]} 8. c4 {[%clk
01:31:12]} {[%emt 00:00:44]} d5 {[%clk 01:18:31]} {[%emt 00:00:13]} 9. Bd3
{[%clk 01:27:42]} {[%emt 00:03:59]} Nh5 {[%clk 01:10:13]} {[%emt 00:08:48]} 10.
Bb1 {[%clk 01:09:10]} {[%emt 00:19:02]} Nf4 {[%clk 00:49:44]} {[%emt 00:21:00]}
11. O-O {[%clk 00:28:14]} {[%emt 00:41:24]} dxc4 {[%clk 00:46:52]} {[%emt
00:03:23]} 12. Nxc4 {[%clk 00:27:15]} {[%emt 00:01:29]} Nxd4 {[%clk 00:43:53]}
{[%emt 00:03:29]} 13. Nxd4 {[%clk 00:21:40]} {[%emt 00:06:05]} Bxd4 {[%clk
00:44:09]} {[%emt 00:00:13]} 14. Bxd4 {[%clk 00:13:47]} {[%emt 00:08:23]} Qxd4
{[%clk 00:43:19]} {[%emt 00:01:20]} 15. Qxd4 {[%clk 00:14:00]} {[%emt
00:00:17]} Ne2+ {[%clk 00:43:44]} {[%emt 00:00:05]} 16. Kh1 {[%clk 00:14:26]}
{[%emt 00:00:04]} Nxd4 {[%clk 00:44:11]} {[%emt 00:00:03]} 17. Re1 {[%clk
00:13:49]} {[%emt 00:01:07]} Be6 {[%clk 00:44:05]} {[%emt 00:00:36]} 18. Be4
{[%clk 00:13:14]} {[%emt 00:01:05]} Rab8 {[%clk 00:36:37]} {[%emt 00:07:58]} 19.
Na5 {[%clk 00:08:51]} {[%emt 00:04:54]} b6 {[%clk 00:34:51]} {[%emt 00:02:16]}
20. Rad1 {[%clk 00:09:13]} {[%emt 00:00:07]} Rfd8 {[%clk 00:32:30]} {[%emt
00:02:50]} 21. Nc6 {[%clk 00:06:23]} {[%emt 00:03:21]} Nxc6 {[%clk 00:32:49]}
{[%emt 00:00:12]} 22. Bxc6 {[%clk 00:06:51]} {[%emt 00:00:02]} Rbc8 {[%clk
00:32:47]} {[%emt 00:00:32]} 23. Be4 {[%clk 00:07:16]} {[%emt 00:00:05]} a5
{[%clk 00:32:52]} {[%emt 00:00:25]} 24. g3 {[%clk 00:06:51]} {[%emt 00:00:55]}
b5 {[%clk 00:27:00]} {[%emt 00:06:23]} 25. Kg2 {[%clk 00:04:53]} {[%emt
00:02:27]} Rxd1 {[%clk 00:23:32]} {[%emt 00:03:58]} 26. Rxd1 {[%clk 00:05:22]}
{[%emt 00:00:01]} Kg7 {[%clk 00:23:52]} {[%emt 00:00:10]} 27. Rd2 {[%clk
00:04:55]} {[%emt 00:00:56]} Kf6 {[%clk 00:22:56]} {[%emt 00:01:26]} 28. Bb7
{[%clk 00:03:11]} {[%emt 00:02:14]} Rc5 {[%clk 00:22:11]} {[%emt 00:01:15]} 29.
Be4 {[%clk 00:00:41]} {[%emt 00:02:59]} Rc3 {[%clk 00:19:12]} {[%emt 00:03:30]}
30. f3 {[%clk 00:00:31]} {[%emt 00:00:40]} a4 {[%clk 00:16:37]} {[%emt
00:03:05]} 31. bxa4 {[%clk 00:01:00]} {[%emt 00:00:01]} bxa4 {[%clk 00:17:03]}
{[%emt 00:00:04]} 32. Re2 {[%clk 00:00:32]} {[%emt 00:00:58]} Rc1 {[%clk
00:16:41]} {[%emt 00:00:53]} 33. Rb2 {[%clk 00:00:31]} {[%emt 00:00:30]} Ra1
{[%clk 00:15:00]} {[%emt 00:02:11]} 34. Bb1 {[%clk 00:00:41]} {[%emt 00:00:20]}
a3 {[%clk 00:15:29]} {[%emt 00:00:02]} 35. Rb6 {[%clk 00:00:41]} {[%emt
00:00:29]} Kg7 {[%clk 00:14:29]} {[%emt 00:01:29]} 36. f4 {[%clk 00:00:32]}
{[%emt 00:00:40]} Bxa2 {[%clk 00:14:36]} {[%emt 00:00:23]} 37. Bxa2 {[%clk
00:00:31]} {[%emt 00:00:31]} Rxa2+ {[%clk 00:15:01]} {[%emt 00:00:04]} 38. Kh3
{[%clk 00:00:58]} {[%emt 00:00:02]} Rb2 {[%clk 00:14:57]} {[%emt 00:00:35]} 39.
Ra6 {[%clk 00:01:27]} {[%emt 00:00:02]} a2 {[%clk 00:15:22]} {[%emt 00:00:04]}
40. Ra7 {[%clk 00:01:34]} {[%emt 00:00:23]} h5 {[%clk 00:15:29]} {[%emt
00:00:23]} 41. Ra5 {[%clk 00:01:54]} {[%emt 00:00:10]} f6 {[%clk 00:15:10]}
{[%emt 00:00:49]} 42. Ra6 {[%clk 00:01:40]} {[%emt 00:00:44]} e5 {[%clk
00:11:02]} {[%emt 00:04:38]} 43. fxe5 {[%clk 00:01:36]} {[%emt 00:00:35]} fxe5
{[%clk 00:11:31]} {[%emt 00:00:01]} 44. g4 {[%clk 00:00:48]} {[%emt 00:01:18]}
e4 {[%clk 00:11:18]} {[%emt 00:00:43]} 45. Kg3 {[%clk 00:00:31]} {[%emt
00:00:46]} e3 {[%clk 00:11:25]} {[%emt 00:00:23]} 46. Ra7+ {[%clk 00:00:32]}
{[%emt 00:00:29]} Kh6 {[%clk 00:11:26]} {[%emt 00:00:29]} 47. Kf4 {[%clk
00:00:32]} {[%emt 00:00:30]} g5+ {[%clk 00:08:42]} {[%emt 00:03:14]} 48. Kxe3
{[%clk 00:00:57]} {[%emt 00:00:05]} hxg4 {[%clk 00:09:09]} {[%emt 00:00:03]} 49.
Ra6 {[%clk 00:00:47]} {[%emt 00:00:39]} Kg7 {[%clk 00:06:58]} {[%emt 00:02:42]}
50. Ra5 {[%clk 00:00:42]} {[%emt 00:00:36]} Kf6 {[%clk 00:06:49]} {[%emt
00:00:39]} 51. Ra6+ {[%clk 00:01:05]} {[%emt 00:00:07]} Ke7 {[%clk 00:07:14]}
{[%emt 00:00:05]} 52. Ra7+ {[%clk 00:01:30]} {[%emt 00:00:06]} Kd6 {[%clk
00:07:43]} 53. Ra6+ {[%clk 00:00:34]} {[%emt 00:01:25]} Kc7 {[%clk 00:08:08]}
{[%emt 00:00:05]} 54. Ra7+ {[%clk 00:00:31]} {[%emt 00:01:09]} Kb6 {[%clk
00:08:30]} 55. Kd4 0-1

[Event "FINAL CAMPEONATO ABSOLUTO DE AJEDREZ CHILE 2018"]
[Site "CENTRO CULTURAL LO PRADO, Chile"]
[Date "2018.03.01"]
[Round "9.5"]
[White "AGUIRRE CONTRERAS, Cristian Ro"]
[Black "HENRIQUEZ VILLAGRA, Cristobal"]
[Result "0-1"]
[TimeControl "90 minutos mas 30 segundos de incremento por movida"]
[WhiteTitle "FM"]
[BlackTitle "GM"]
[WhiteElo "2272"]
[BlackElo "2501"]

1. e4 {[%clk 01:30:56]} {[%emt 00:00:03]} e5 {[%clk 01:30:17]} {[%emt
00:00:44]} 2. Nf3 {[%clk 01:31:17]} {[%emt 00:00:09]} Nc6 {[%clk 01:30:42]}
{[%emt 00:00:04]} 3. Bc4 {[%clk 01:31:36]} {[%emt 00:00:11]} Bc5 {[%clk
01:31:06]} {[%emt 00:00:06]} 4. c3 {[%clk 01:31:47]} {[%emt 00:00:20]} Nf6
{[%clk 01:31:30]} {[%emt 00:00:05]} 5. d4 {[%clk 01:32:09]} {[%emt 00:00:08]}
exd4 {[%clk 01:31:51]} {[%emt 00:00:09]} 6. cxd4 {[%clk 01:32:32]} {[%emt
00:00:08]} Bb4+ {[%clk 01:32:17]} {[%emt 00:00:04]} 7. Nc3 {[%clk 01:32:53]}
{[%emt 00:00:08]} Nxe4 {[%clk 01:31:47]} {[%emt 00:01:00]} 8. O-O {[%clk
01:33:15]} {[%emt 00:00:08]} Bxc3 {[%clk 01:31:43]} {[%emt 00:00:33]} 9. d5
{[%clk 01:33:38]} {[%emt 00:00:09]} Ne5 {[%clk 01:31:33]} {[%emt 00:00:39]} 10.
bxc3 {[%clk 01:33:19]} {[%emt 00:00:48]} Nxc4 {[%clk 01:31:44]} {[%emt
00:00:19]} 11. Qd4 {[%clk 01:33:40]} {[%emt 00:00:09]} O-O {[%clk 01:31:59]}
{[%emt 00:00:15]} 12. Qxe4 {[%clk 01:33:32]} {[%emt 00:00:38]} Nd6 {[%clk
01:32:23]} {[%emt 00:00:06]} 13. Qd3 {[%clk 01:21:30]} {[%emt 00:12:32]} b6
{[%clk 01:25:42]} {[%emt 00:07:12]} 14. Bf4 {[%clk 01:20:28]} {[%emt 00:01:32]}
Qf6 {[%clk 01:11:56]} {[%emt 00:14:15]} 15. Bg3 {[%clk 01:12:32]} {[%emt
00:08:26]} Re8 {[%clk 01:03:29]} {[%emt 00:08:56]} 16. Rfe1 {[%clk 01:12:45]}
{[%emt 00:00:18]} Bb7 {[%clk 01:02:54]} {[%emt 00:01:06]} 17. h4 {[%clk
01:07:34]} {[%emt 00:05:41]} Qf5 {[%clk 00:58:20]} {[%emt 00:05:04]} 18. Qxf5
{[%clk 01:01:10]} {[%emt 00:06:54]} Nxf5 {[%clk 00:57:40]} {[%emt 00:01:10]} 19.
Bxc7 {[%clk 01:00:37]} {[%emt 00:01:03]} Bxd5 {[%clk 00:54:30]} {[%emt
00:03:40]} 20. Nd4 {[%clk 00:52:54]} {[%emt 00:08:14]} Rxe1+ {[%clk 00:47:03]}
{[%emt 00:07:57]} 21. Rxe1 {[%clk 00:53:07]} {[%emt 00:00:17]} Nxd4 {[%clk
00:46:14]} {[%emt 00:01:19]} 22. cxd4 {[%clk 00:53:09]} {[%emt 00:00:27]} Bxa2
{[%clk 00:46:37]} {[%emt 00:00:07]} 23. Ra1 {[%clk 00:45:40]} {[%emt 00:07:59]}
Bd5 {[%clk 00:46:49]} {[%emt 00:00:18]} 24. Ra6 {[%clk 00:46:04]} {[%emt
00:00:07]} f6 {[%clk 00:46:04]} {[%emt 00:01:14]} 25. f3 {[%clk 00:46:18]}
{[%emt 00:00:17]} Kf7 {[%clk 00:46:21]} {[%emt 00:00:13]} 26. Kf2 {[%clk
00:46:37]} {[%emt 00:00:11]} Ke6 {[%clk 00:46:33]} {[%emt 00:00:18]} 27. Bf4
{[%clk 00:47:05]} {[%emt 00:00:02]} d6 {[%clk 00:45:56]} {[%emt 00:01:07]} 28.
Ke3 {[%clk 00:47:19]} {[%emt 00:00:16]} Bc4 {[%clk 00:45:11]} {[%emt 00:01:15]}
29. Ra4 {[%clk 00:47:25]} {[%emt 00:00:24]} Kd5 {[%clk 00:45:03]} {[%emt
00:00:38]} 30. Kd2 {[%clk 00:46:37]} {[%emt 00:01:17]} a5 {[%clk 00:41:45]}
{[%emt 00:03:49]} 31. Ra1 {[%clk 00:45:15]} {[%emt 00:01:52]} 0-1

[Event "FINAL CAMPEONATO ABSOLUTO DE AJEDREZ CHILE 2018"]
[Site "CENTRO CULTURAL LO PRADO, Chile"]
[Date "2018.03.01"]
[Round "9.6"]
[White "VERGARA JOFRE, Felipe Andres"]
[Black "SALINAS HERRERA, Pablo Patrici"]
[Result "1/2-1/2"]
[TimeControl "90 minutos mas 30 segundos de incremento por movida"]
[WhiteTitle "FM"]
[BlackTitle "IM"]
[WhiteElo "2270"]
[BlackElo "2453"]

1. e4 {[%emt 00:06:49]} c5 {[%clk 01:24:07]} {[%emt 00:03:58]} 2. Nf3 {[%clk
01:27:21]} {[%emt 00:00:16]} e6 {[%clk 01:23:43]} {[%emt 00:00:53]} 3. d4
{[%clk 01:27:45]} {[%emt 00:00:07]} cxd4 {[%clk 01:24:09]} {[%emt 00:00:05]} 4.
Nxd4 {[%clk 01:28:10]} {[%emt 00:00:05]} Nc6 {[%clk 01:24:11]} {[%emt
00:00:27]} 5. Nc3 {[%clk 01:27:28]} {[%emt 00:01:12]} d6 {[%clk 01:24:37]}
{[%emt 00:00:04]} 6. Be2 {[%clk 01:27:46]} {[%emt 00:00:13]} Nf6 {[%clk
01:25:00]} {[%emt 00:00:07]} 7. O-O {[%clk 01:27:54]} {[%emt 00:00:22]} Be7
{[%clk 01:23:57]} {[%emt 00:01:33]} 8. Be3 {[%clk 01:27:53]} {[%emt 00:00:31]}
O-O {[%clk 01:24:21]} {[%emt 00:00:06]} 9. f4 {[%clk 01:28:18]} {[%emt
00:00:05]} e5 {[%clk 01:24:44]} {[%emt 00:00:08]} 10. fxe5 {[%clk 01:18:51]}
{[%emt 00:09:57]} dxe5 {[%clk 01:25:03]} {[%emt 00:00:10]} 11. Nf5 {[%clk
01:14:48]} {[%emt 00:04:33]} Bb4 {[%clk 01:17:31]} {[%emt 00:08:02]} 12. Nh6+
{[%clk 00:56:15]} {[%emt 00:19:03]} gxh6 {[%clk 01:09:11]} {[%emt 00:08:50]} 13.
Qxd8 {[%clk 00:55:24]} {[%emt 00:01:21]} Rxd8 {[%clk 01:09:35]} {[%emt
00:00:05]} 14. Rxf6 {[%clk 00:55:46]} {[%emt 00:00:08]} Be6 {[%clk 01:10:03]}
{[%emt 00:00:02]} 15. Bxh6 {[%clk 00:41:31]} {[%emt 00:14:46]} Nd4 {[%clk
01:10:02]} {[%emt 00:00:31]} 16. Bh5 {[%clk 00:26:05]} {[%emt 00:15:56]} Be7
{[%clk 01:02:06]} {[%emt 00:08:26]} 17. Rf2 {[%clk 00:23:35]} {[%emt 00:03:00]}
f5 {[%clk 01:02:32]} {[%emt 00:00:05]} 18. Raf1 {[%clk 00:19:24]} {[%emt
00:04:41]} f4 {[%clk 01:02:20]} {[%emt 00:00:42]} 19. g3 {[%clk 00:17:39]}
{[%emt 00:02:15]} Bh3 {[%emt 00:04:33]} 20. gxf4 {[%emt 00:00:12]} Bxf1 {[%emt
00:00:02]} 21. Kxf1 {[%emt 00:00:23]} 1/2-1/2

[Event "FINAL CAMPEONATO ABSOLUTO DE AJEDREZ CHILE 2018"]
[Site "CENTRO CULTURAL LO PRADO, Chile"]
[Date "2018.03.02"]
[Round "10.1"]
[White "LLORENS SEPULVEDA, Marcelo"]
[Black "SALINAS HERRERA, Pablo Patrici"]
[Result "0-1"]
[TimeControl "90 minutos mas 30 segundos de incremento por movida"]
[WhiteTitle "FM"]
[BlackTitle "IM"]
[WhiteElo "2266"]
[BlackElo "2453"]

1. e4 {[%clk 01:23:30]} {[%emt 00:07:27]} c5 {[%clk 01:27:27]} {[%emt
00:03:33]} 2. Nf3 {[%clk 01:23:46]} {[%emt 00:00:13]} e6 {[%clk 01:27:54]}
{[%emt 00:00:04]} 3. b3 {[%clk 01:24:06]} {[%emt 00:00:09]} d5 {[%clk
01:17:42]} {[%emt 00:10:42]} 4. exd5 {[%clk 01:23:59]} {[%emt 00:00:36]} exd5
{[%clk 01:18:09]} {[%emt 00:00:04]} 5. Bb5+ {[%clk 01:24:01]} {[%emt 00:00:27]}
Nc6 {[%clk 01:18:34]} {[%emt 00:00:06]} 6. Bxc6+ {[%clk 01:24:09]} {[%emt
00:00:22]} bxc6 {[%clk 01:18:58]} {[%emt 00:00:07]} 7. O-O {[%clk 01:24:32]}
{[%emt 00:00:07]} Bd6 {[%clk 01:14:38]} {[%emt 00:04:50]} 8. Bb2 {[%clk
01:19:51]} {[%emt 00:05:10]} Ne7 {[%clk 00:57:53]} {[%emt 00:17:15]} 9. Bxg7
{[%clk 01:01:38]} {[%emt 00:18:43]} Rg8 {[%clk 00:58:04]} {[%emt 00:00:19]} 10.
Be5 {[%clk 01:01:48]} {[%emt 00:00:19]} Bg4 {[%clk 00:54:58]} {[%emt 00:03:37]}
11. Re1 {[%clk 01:01:19]} {[%emt 00:00:59]} Bxe5 {[%clk 00:54:38]} {[%emt
00:00:50]} 12. Rxe5 {[%clk 01:01:43]} {[%emt 00:00:06]} Qd6 {[%clk 00:55:05]}
{[%emt 00:00:03]} 13. Re3 {[%clk 00:43:21]} {[%emt 00:18:51]} Kf8 {[%clk
00:50:32]} {[%emt 00:05:04]} 14. d4 {[%clk 00:36:26]} {[%emt 00:07:25]} Nf5
{[%clk 00:50:46]} {[%emt 00:00:16]} 15. Rd3 {[%clk 00:36:42]} {[%emt 00:00:13]}
Nh4 {[%clk 00:36:14]} {[%emt 00:15:02]} 16. g3 {[%clk 00:31:07]} {[%emt
00:06:05]} Nxf3+ {[%clk 00:34:45]} {[%emt 00:01:59]} 17. Rxf3 {[%clk 00:31:30]}
{[%emt 00:00:06]} Bxf3 {[%clk 00:34:52]} {[%emt 00:00:24]} 18. Qxf3 {[%clk
00:31:55]} {[%emt 00:00:05]} cxd4 {[%clk 00:35:17]} {[%emt 00:00:06]} 19. Nd2
{[%clk 00:31:06]} {[%emt 00:01:18]} Rg6 {[%clk 00:34:21]} {[%emt 00:01:26]} 20.
Qd3 {[%clk 00:31:06]} {[%emt 00:00:29]} c5 {[%clk 00:33:07]} {[%emt 00:01:45]}
21. Nf3 {[%clk 00:31:15]} {[%emt 00:00:20]} Kg8 {[%clk 00:29:56]} {[%emt
00:03:42]} 22. Rd1 {[%clk 00:31:29]} {[%emt 00:00:16]} Qa6 {[%clk 00:29:30]}
{[%emt 00:00:57]} 23. Qf5 {[%clk 00:31:36]} {[%emt 00:00:22]} Qe6 {[%clk
00:29:38]} {[%emt 00:00:22]} 24. Qh5 {[%clk 00:31:22]} {[%emt 00:00:43]} Rf6
{[%clk 00:24:43]} {[%emt 00:05:25]} 25. Ne5 {[%clk 00:26:37]} {[%emt 00:05:15]}
Rf5 {[%clk 00:22:40]} {[%emt 00:02:33]} 26. Qg4+ {[%clk 00:26:57]} {[%emt
00:00:10]} Kh8 {[%clk 00:23:06]} {[%emt 00:00:04]} 27. Nd3 {[%clk 00:27:03]}
{[%emt 00:00:23]} Rg8 {[%clk 00:23:10]} {[%emt 00:00:26]} 28. Qh3 {[%clk
00:27:19]} {[%emt 00:00:14]} c4 {[%clk 00:20:35]} {[%emt 00:03:06]} 29. Nc5
{[%clk 00:20:39]} {[%emt 00:07:09]} Qe5 {[%clk 00:20:09]} {[%emt 00:00:54]} 30.
Nd7 {[%clk 00:19:17]} {[%emt 00:01:55]} Qe4 {[%clk 00:20:24]} {[%emt 00:00:15]}
31. Rd2 {[%clk 00:08:51]} {[%emt 00:10:55]} Qe1+ {[%clk 00:17:55]} {[%emt
00:03:00]} 32. Kg2 {[%clk 00:09:15]} {[%emt 00:00:05]} Rf4 {[%clk 00:17:36]}
{[%emt 00:00:49]} 0-1

[Event "FINAL CAMPEONATO ABSOLUTO DE AJEDREZ CHILE 2018"]
[Site "CENTRO CULTURAL LO PRADO, Chile"]
[Date "2018.03.02"]
[Round "10.2"]
[White "HENRIQUEZ VILLAGRA, Cristobal"]
[Black "VERGARA JOFRE, Felipe Andres"]
[Result "1-0"]
[TimeControl "90 minutos mas 30 segundos de incremento por movida"]
[WhiteTitle "GM"]
[BlackTitle "FM"]
[WhiteElo "2501"]
[BlackElo "2270"]

1. e4 {[%clk 01:27:02]} {[%emt 00:03:57]} c5 {[%clk 01:29:36]} {[%emt
00:01:25]} 2. Nf3 {[%clk 01:27:26]} {[%emt 00:00:05]} d6 {[%clk 01:30:03]}
{[%emt 00:00:04]} 3. Bb5+ {[%clk 01:27:51]} {[%emt 00:00:05]} Nc6 {[%clk
01:30:29]} {[%emt 00:00:04]} 4. O-O {[%clk 01:28:07]} {[%emt 00:00:12]} Bd7
{[%clk 01:30:33]} {[%emt 00:00:27]} 5. Re1 {[%clk 01:28:25]} {[%emt 00:00:12]}
Nf6 {[%clk 01:30:57]} {[%emt 00:00:06]} 6. c3 {[%clk 01:28:51]} {[%emt
00:00:04]} a6 {[%clk 01:31:23]} {[%emt 00:00:04]} 7. Bf1 {[%clk 01:29:03]}
{[%emt 00:00:17]} Bg4 {[%clk 01:31:31]} {[%emt 00:00:22]} 8. d4 {[%clk
01:29:28]} {[%emt 00:00:06]} cxd4 {[%clk 01:31:35]} {[%emt 00:00:27]} 9. cxd4
{[%clk 01:29:55]} {[%emt 00:00:01]} d5 {[%clk 01:31:48]} {[%emt 00:00:17]} 10.
exd5 {[%clk 01:29:17]} {[%emt 00:01:08]} Nxd5 {[%clk 01:32:12]} {[%emt
00:00:07]} 11. Nc3 {[%clk 01:28:46]} {[%emt 00:01:01]} e6 {[%clk 01:32:34]}
{[%emt 00:00:07]} 12. h3 {[%clk 01:28:38]} {[%emt 00:00:38]} Bh5 {[%clk
01:29:27]} {[%emt 00:03:36]} 13. Nxd5 {[%clk 01:22:14]} {[%emt 00:06:55]} Qxd5
{[%clk 01:29:40]} {[%emt 00:00:17]} 14. g4 {[%clk 01:22:40]} {[%emt 00:00:05]}
Bg6 {[%clk 01:28:10]} {[%emt 00:01:59]} 15. Bg2 {[%clk 01:22:48]} {[%emt
00:00:22]} Rd8 {[%clk 00:46:12]} {[%emt 00:42:28]} 16. Bg5 {[%clk 00:49:01]}
{[%emt 00:34:17]} f6 {[%clk 00:45:53]} {[%emt 00:00:50]} 17. Ne5 {[%clk
00:41:56]} {[%emt 00:07:34]} Qxd4 {[%clk 00:21:34]} {[%emt 00:24:49]} 18. Nxc6
{[%clk 00:41:48]} {[%emt 00:00:38]} Qxd1 {[%clk 00:09:44]} {[%emt 00:12:20]} 19.
Raxd1 {[%clk 00:41:44]} {[%emt 00:00:34]} Rxd1 {[%clk 00:10:01]} {[%emt
00:00:13]} 20. Rxd1 {[%clk 00:42:10]} {[%emt 00:00:03]} bxc6 {[%clk 00:09:48]}
{[%emt 00:00:43]} 21. Bf4 {[%clk 00:42:27]} {[%emt 00:00:13]} Be7 {[%clk
00:06:26]} {[%emt 00:03:51]} 22. Bxc6+ {[%clk 00:42:51]} {[%emt 00:00:06]} Kf7
{[%clk 00:06:55]} {[%emt 00:00:02]} 23. Bb7 {[%clk 00:43:11]} {[%emt 00:00:10]}
Bc2 {[%clk 00:04:10]} {[%emt 00:03:14]} 24. Rd2 {[%clk 00:41:56]} {[%emt
00:01:46]} Bb1 {[%clk 00:04:35]} {[%emt 00:00:05]} 25. a4 {[%clk 00:42:19]}
{[%emt 00:00:07]} e5 {[%clk 00:04:07]} {[%emt 00:00:58]} 26. Be3 {[%clk
00:42:07]} {[%emt 00:00:42]} a5 {[%clk 00:04:11]} {[%emt 00:00:26]} 27. Bd5+
{[%clk 00:40:17]} {[%emt 00:02:19]} Kg6 {[%clk 00:04:26]} {[%emt 00:00:16]} 28.
Bb6 {[%clk 00:34:08]} {[%emt 00:06:39]} Bb4 {[%clk 00:04:33]} {[%emt 00:00:23]}
29. Rd1 {[%clk 00:34:25]} {[%emt 00:00:13]} Rb8 {[%clk 00:00:45]} {[%emt
00:04:19]} 30. Ba7 {[%clk 00:34:50]} {[%emt 00:00:04]} Bc2 {[%clk 00:01:01]}
{[%emt 00:00:14]} 31. Be4+ {[%clk 00:35:19]} {[%emt 00:00:02]} Bxe4 {[%clk
00:01:02]} {[%emt 00:00:29]} 32. Bxb8 {[%clk 00:35:47]} {[%emt 00:00:02]} Bc2
{[%clk 00:00:54]} {[%emt 00:00:37]} 33. Rd8 {[%clk 00:29:36]} {[%emt 00:06:40]}
h5 {[%clk 00:00:52]} {[%emt 00:00:33]} 34. gxh5+ {[%clk 00:29:24]} {[%emt
00:00:43]} Kxh5 {[%clk 00:01:20]} {[%emt 00:00:02]} 35. Bd6 {[%clk 00:29:47]}
{[%emt 00:00:06]} Bxd6 {[%clk 00:00:43]} {[%emt 00:01:08]} 36. Rxd6 {[%clk
00:30:15]} {[%emt 00:00:01]} Bxa4 {[%clk 00:01:12]} {[%emt 00:00:02]} 37. Rd5
{[%clk 00:30:31]} {[%emt 00:00:14]} 1-0